fUST/lending_fUST_20250806
["ID","MTS","AMOUNT","RATE_DAILY","PERIOD"]
[377500215,1754430654579,-460.0,0.00027945,2]
[377500216,1754430654589,-460.0,0.00027945,2]
[377500217,1754430654598,-460.0,0.00027945,2]
[377500218,1754430654607,-460.0,0.00027945,2]
[377500219,1754430654617,-874.06,0.00027945,2]
[377500220,1754430654626,-460.0,0.00027945,2]
[377500221,1754430654635,-460.0,0.00027945,2]
[377500222,1754430654644,-460.0,0.00027945,2]
[377500223,1754430654654,-460.0,0.00027945,2]
[377500224,1754430654663,-460.0,0.00027945,2]
[377500225,1754430654672,-460.0,0.00027945,2]
[377500226,1754430654682,-661.57,0.00027945,2]
[377500227,1754430654692,-473.45430432,0.00027945,2]
[377500228,1754430654705,-460.0,0.00027945,2]
[377500229,1754430654714,-460.0,0.00027945,2]
[377500230,1754430654724,-460.0,0.00027945,2]
[377500231,1754430654733,-460.0,0.00027945,2]
[377500232,1754430654743,-695.34,0.00027945,2]
[377500233,1754430654752,-601.13,0.00027945,2]
[377500234,1754430654762,-460.0,0.00027945,2]
[377500235,1754430654772,-858.9,0.00027945,2]
[377500236,1754430654783,-460.0,0.00027945,2]
[377500237,1754430654792,-468.56722548,0.00027945,2]
[377500238,1754430654802,-530.73,0.00027945,2]
[377500239,1754430654814,-460.0,0.00027945,2]
[377500240,1754430654824,-460.0,0.00027945,2]
[377500241,1754430654834,-460.0,0.00027945,2]
[377500242,1754430654843,-460.0,0.00027945,2]
[377500243,1754430654853,-753.11,0.00027945,2]
[377500244,1754430654862,-708.2,0.00027945,2]
[377500245,1754430654872,-460.0,0.00027945,2]
[377500246,1754430654882,-542.88,0.00027945,2]
[377500247,1754430654892,-460.0,0.00027945,2]
[377500248,1754430654902,-577.76,0.00027945,2]
[377500249,1754430654912,-460.0,0.00027945,2]
[377500250,1754430654922,-1665.23,0.00027945,2]
[377500251,1754430654931,-460.0,0.00027945,2]
[377500252,1754430654941,-460.0,0.00027945,2]
[377500253,1754430654951,-1257.42,0.00027945,2]
[377500254,1754430654961,-460.0,0.00027945,2]
[377500255,1754430654970,-460.0,0.00027945,2]
[377500256,1754430654980,-460.0,0.00027945,2]
[377500257,1754430654990,-460.0,0.00027945,2]
[377500258,1754430654999,-460.0,0.00027945,2]
[377500259,1754430655010,-460.0,0.00027945,2]
[377500260,1754430655020,-1323.72,0.00027945,2]
[377500261,1754430655029,-1507.31,0.00027945,2]
[377500262,1754430655038,-843.26,0.00027945,2]
[377500263,1754430655047,-871.76,0.00027945,2]
[377500264,1754430655058,-460.0,0.00027945,2]
[377500265,1754430655071,-460.0,0.00027945,2]
[377500266,1754430655080,-460.0,0.00027945,2]
[377500267,1754430655090,-460.0,0.00027945,2]
[377500268,1754430655099,-460.0,0.00027945,2]
[377500269,1754430655109,-460.0,0.00027945,2]
[377500270,1754430655119,-1612.73,0.00027945,2]
[377500271,1754430655128,-460.0,0.00027945,2]
[377500272,1754430655137,-497.98728385,0.00027945,2]
[377500273,1754430655147,-465.92378101,0.00027945,2]
[377500274,1754430655157,-460.0,0.00027945,2]
[377500275,1754430655167,-460.0,0.00027945,2]
[377500276,1754430655176,-1161.99,0.00027945,2]
[377500277,1754430655185,-896.21,0.00027945,2]
[377500278,1754430655195,-466.77127375,0.00027945,2]
[377500279,1754430655204,-718.5,0.00027945,2]
[377500280,1754430655214,-460.0,0.00027945,2]
[377500281,1754430655223,-460.0,0.00027945,2]
[377500282,1754430655232,-460.0,0.00027945,2]
[377500283,1754430655242,-460.0,0.00027945,2]
[377500284,1754430655252,-460.0,0.00027945,2]
[377500285,1754430655261,-460.0,0.00027945,2]
[377500286,1754430655271,-2671.58,0.00027945,2]
[377500287,1754430655280,-2644.65,0.00027945,2]
[377500288,1754430655290,-2182.02609596,0.0002797,2]
[377500289,1754430655299,-500.0,0.00027973,5]
[377500290,1754430655311,-150.0,0.00027973,3]
[377500291,1754430655320,-150.0,0.00027973,5]
[377500292,1754430655330,-200.0,0.00027979,15]
[377500293,1754430655339,-300.0,0.00027979,15]
[377500294,1754430655348,-2806.35296379,0.00027984,2]
[377500295,1754430655358,-216.4206905,0.00028,3]
[377500296,1754430655367,-312.16666667,0.00028,3]
[377500297,1754430655376,-312.16666667,0.00028,3]
[377500298,1754430655387,-461.15695721,0.00028,10]
[377500299,1754430655398,-13451.60231868,0.00028,8]
[377500300,1754430655407,-527.3554621,0.00028,3]
[377500301,1754430655417,-288.44944115,0.00028119,2]
[377500302,1754430655646,-8805.30809028,0.00028119,2]
[377500303,1754430655661,-234.03172122,0.00028119,2]
[377500304,1754430655671,-460.0,0.00028219,2]
[377500305,1754430655682,-460.0,0.00028219,2]
[377500306,1754430655691,-460.0,0.00028219,2]
[377500307,1754430655701,-460.0,0.00028219,2]
[377500308,1754430655711,-460.0,0.00028219,2]
[377500309,1754430655721,-460.0,0.00028219,2]
[377500310,1754430655730,-460.0,0.00028219,2]
[377500311,1754430655739,-170.68261476,0.00028219,2]
[377500312,1754430655750,-460.0,0.00028219,2]
[377500313,1754430655760,-460.0,0.00028219,2]
[377500314,1754430655770,-460.0,0.00028219,2]
[377500315,1754430655779,-1842.06,0.00028219,2]
[377500316,1754430655790,-460.0,0.00028219,2]
[377500317,1754430655800,-460.0,0.00028219,2]
[377500318,1754430655813,-460.0,0.00028219,2]
[377500319,1754430655823,-58465.94,0.00028219,2]
[377500320,1754430655832,-460.0,0.00028219,2]
[377500321,1754430655841,-460.0,0.00028219,2]
[377500322,1754430655851,-631.25,0.00028219,2]
[377500323,1754430655860,-460.0,0.00028219,2]
[377500324,1754430655870,-460.0,0.00028219,2]
[377500325,1754430655879,-460.0,0.00028219,2]
[377500326,1754430655889,-460.0,0.00028219,2]
[377500327,1754430655898,-460.0,0.00028219,2]
[377500328,1754430655907,-460.0,0.00028219,2]
[377500329,1754430655917,-460.0,0.00028219,2]
[377500330,1754430655926,-460.0,0.00028219,2]
[377500331,1754430655936,-460.0,0.00028219,2]
[377500332,1754430655945,-473.52991264,0.00028219,2]
[377500333,1754430655955,-460.0,0.00028219,2]
[377500334,1754430655964,-460.0,0.00028219,2]
[377500335,1754430655973,-460.0,0.00028219,2]
[377500336,1754430655983,-460.0,0.00028219,2]
[377500337,1754430655992,-935.97,0.00028219,2]
[377500338,1754430656002,-587.3,0.00028219,2]
[377500339,1754430656011,-460.0,0.00028219,2]
[377500340,1754430656020,-460.0,0.00028219,2]
[377500341,1754430656030,-460.0,0.00028219,2]
[377500342,1754430656039,-532.99793358,0.00028219,2]
[377500343,1754430656049,-460.0,0.00028219,2]
[377500344,1754430656061,-460.0,0.00028219,2]
[377500345,1754430656074,-1112.51,0.00028219,2]
[377500346,1754430656083,-1373.77,0.00028219,2]
[377500347,1754430656093,-460.0,0.00028219,2]
[377500348,1754430656103,-397.66791388,0.00028219,2]
[377500349,1754430656112,-467.7913872,0.00028219,2]
[377500350,1754430656122,-323.58275494,0.00028219,2]
[377500351,1754430656131,-460.0,0.00028219,2]
[377500352,1754430656142,-346.9539371,0.00028219,2]
[377500353,1754430656152,-460.0,0.00028219,2]
[377500354,1754430656162,-871.36,0.00028219,2]
[377500355,1754430656172,-460.0,0.00028219,2]
[377500356,1754430656182,-469.55798324,0.00028219,2]
[377500357,1754430656191,-467.97800243,0.00028219,2]
[377500358,1754430656200,-460.0,0.00028219,2]
[377500359,1754430656210,-460.0,0.00028219,2]
[377500360,1754430656219,-460.0,0.00028219,2]
[377500361,1754430656229,-470.31131267,0.00028219,2]
[377500362,1754430656239,-1779.37,0.00028219,2]
[377500363,1754430656249,-1545.29,0.00028219,2]
[377500364,1754430656261,-460.0,0.00028219,2]
[377500365,1754430656271,-460.0,0.00028219,2]
[377500366,1754430656280,-460.0,0.00028219,2]
[377500367,1754430656290,-465.94527768,0.00028219,2]
[377500368,1754430656299,-466.51735706,0.00028219,2]
[377500369,1754430656309,-460.0,0.00028219,2]
[377500370,1754430656318,-460.0,0.00028219,2]
[377500371,1754430656327,-254.69678522,0.00028219,2]
[377500372,1754430656337,-460.0,0.00028219,2]
[377500373,1754430656346,-460.0,0.00028219,2]
[377500374,1754430656356,-460.0,0.00028219,2]
[377500375,1754430656365,-464.58256126,0.00028219,2]
[377500376,1754430656375,-460.0,0.00028219,2]
[377500377,1754430656385,-460.0,0.00028219,2]
[377500378,1754430656397,-460.0,0.00028219,2]
[377500379,1754430656408,-460.0,0.00028219,2]
[377500380,1754430656418,-460.0,0.00028219,2]
[377500381,1754430656428,-358.98523353,0.00028219,2]
[377500382,1754430656438,-1537.8,0.00028219,2]
[377500383,1754430656448,-582.89,0.00028219,2]
[377500384,1754430656458,-460.0,0.00028219,2]
[377500385,1754430656468,-478.5,0.00028219,2]
[377500386,1754430656477,-460.0,0.00028219,2]
[377500387,1754430656487,-497.24,0.00028219,2]
[377500388,1754430656497,-460.0,0.00028219,2]
[377500389,1754430656506,-460.0,0.00028219,2]
[377500390,1754430656516,-460.0,0.00028219,2]
[377500391,1754430656525,-460.0,0.00028219,2]
[377500392,1754430656535,-460.0,0.00028219,2]
[377500393,1754430656544,-460.0,0.00028219,2]
[377500394,1754430656554,-460.0,0.00028219,2]
[377500395,1754430656566,-460.0,0.00028219,2]
[377500396,1754430656575,-460.0,0.00028219,2]
[377500397,1754430656585,-460.0,0.00028219,2]
[377500398,1754430656595,-460.0,0.00028219,2]
[377500399,1754430656606,-460.0,0.00028219,2]
[377500400,1754430656618,-460.0,0.00028219,2]
[377500401,1754430656628,-5939.81,0.00028219,2]
[377500402,1754430656638,-466.11556657,0.00028219,2]
[377500403,1754430656648,-460.0,0.00028219,2]
[377500404,1754430656658,-460.0,0.00028219,2]
[377500405,1754430656668,-474.83873854,0.00028219,2]
[377500406,1754430656677,-1094.68,0.00028219,2]
[377500407,1754430656689,-460.0,0.00028219,2]
[377500408,1754430656699,-460.0,0.00028219,2]
[377500409,1754430656709,-460.0,0.00028219,2]
[377500410,1754430656719,-460.0,0.00028219,2]
[377500411,1754430656730,-460.0,0.00028219,2]
[377500412,1754430656742,-460.0,0.00028219,2]
[377500413,1754430656752,-460.0,0.00028219,2]
[377500414,1754430656762,-460.0,0.00028219,2]
[377500415,1754430656772,-493.69,0.00028219,2]
[377500416,1754430656783,-460.0,0.00028219,2]
[377500417,1754430656792,-460.0,0.00028219,2]
[377500418,1754430656803,-460.0,0.00028219,2]
[377500419,1754430656815,-460.0,0.00028219,2]
[377500420,1754430656825,-460.0,0.00028219,2]
[377500421,1754430656835,-1093.0,0.00028219,2]
[377500422,1754430656845,-460.0,0.00028219,2]
[377500423,1754430656855,-1269.04,0.00028219,2]
[377500424,1754430656865,-460.0,0.00028219,2]
[377500425,1754430656874,-460.0,0.00028219,2]
[377500426,1754430656888,-460.0,0.00028219,2]
[377500427,1754430656898,-460.0,0.00028219,2]
[377500428,1754430656908,-633.84,0.00028219,2]
[377500429,1754430656918,-460.0,0.00028219,2]
[377500430,1754430656930,-460.0,0.00028219,2]
[377500431,1754430656940,-460.0,0.00028219,2]
[377500432,1754430656949,-460.0,0.00028219,2]
[377500433,1754430656959,-496.46,0.00028219,2]
[377500434,1754430656969,-1558.16,0.00028219,2]
[377500435,1754430656979,-380.94374182,0.00028219,2]
[377500436,1754430656989,-1070.81,0.00028219,2]
[377500437,1754430656999,-460.0,0.00028219,2]
[377500438,1754430657009,-460.0,0.00028219,2]
[377500439,1754430657018,-460.0,0.00028219,2]
[377500440,1754430657028,-460.0,0.00028219,2]
[377500441,1754430657038,-460.0,0.00028219,2]
[377500442,1754430657048,-471.69368372,0.00028219,2]
[377500443,1754430657059,-836.37,0.00028219,2]
[377500444,1754430657072,-460.0,0.00028219,2]
[377500445,1754430657082,-460.0,0.00028219,2]
[377500446,1754430657092,-460.0,0.00028219,2]
[377500447,1754430657101,-1359.86,0.00028219,2]
[377500448,1754430657111,-5050.93,0.00028219,2]
[377500449,1754430657121,-460.0,0.00028219,2]
[377500450,1754430657131,-2094.78,0.00028219,2]
[377500451,1754430657142,-460.0,0.00028219,2]
[377500452,1754430657151,-460.0,0.00028219,2]
[377500453,1754430657164,-1722.74,0.00028219,2]
[377500454,1754430657173,-460.0,0.00028219,2]
[377500455,1754430657183,-460.0,0.00028219,2]
[377500456,1754430657193,-460.0,0.00028219,2]
[377500457,1754430657382,-1026.08,0.00028219,2]
[377500458,1754430657392,-460.0,0.00028219,2]
[377500459,1754430657402,-460.0,0.00028219,2]
[377500460,1754430657411,-460.0,0.00028219,2]
[377500461,1754430657421,-460.0,0.00028219,2]
[377500462,1754430657431,-460.0,0.00028219,2]
[377500463,1754430657441,-460.0,0.00028219,2]
[377500464,1754430657450,-579.16,0.00028219,2]
[377500465,1754430657460,-460.0,0.00028219,2]
[377500466,1754430657469,-460.0,0.00028219,2]
[377500467,1754430657480,-297.64655322,0.00028219,2]
[377500468,1754430657490,-1290.1,0.00028219,2]
[377500469,1754430657499,-219.14431809,0.00028219,2]
[377500470,1754430657509,-889.95,0.00028219,2]
[377500471,1754430657520,-1222.34,0.00028219,2]
[377500472,1754430657531,-940.82,0.00028219,2]
[377500473,1754430657542,-469.60345435,0.00028219,2]
[377500474,1754430657552,-500.0,0.00028219,2]
[377500475,1754430657563,-197.12379959,0.00028219,2]
[377500476,1754430657573,-460.0,0.00028219,2]
[377500477,1754430657583,-460.0,0.00028219,2]
[377500478,1754430657593,-216.35496516,0.00028219,2]
[377500479,1754430657603,-460.0,0.00028219,2]
[377500480,1754430657612,-4422.38,0.00028219,2]
[377500481,1754430657622,-489.74,0.00028219,2]
[377500482,1754430657631,-500.0,0.00028219,2]
[377500483,1754430657641,-460.0,0.00028219,2]
[377500484,1754430657651,-323.34260802,0.00028219,2]
[377500485,1754430657660,-2207.01,0.00028219,2]
[377500486,1754430657670,-460.0,0.00028219,2]
[377500487,1754430657681,-460.0,0.00028219,2]
[377500488,1754430657691,-460.0,0.00028219,2]
[377500489,1754430657700,-460.0,0.00028219,2]
[377500490,1754430657710,-460.0,0.00028219,2]
[377500491,1754430657719,-460.0,0.00028219,2]
[377500492,1754430657728,-460.0,0.00028219,2]
[377500493,1754430657737,-874.06,0.00028219,2]
[377500494,1754430657747,-460.0,0.00028219,2]
[377500495,1754430657756,-460.0,0.00028219,2]
[377500496,1754430657765,-460.0,0.00028219,2]
[377500497,1754430657774,-460.0,0.00028219,2]
[377500498,1754430657785,-661.57,0.00028219,2]
[377500499,1754430657794,-460.0,0.00028219,2]
[377500500,1754430657805,-460.0,0.00028219,2]
[377500501,1754430657816,-460.0,0.00028219,2]
[377500502,1754430657826,-460.0,0.00028219,2]
[377500503,1754430657835,-695.34,0.00028219,2]
[377500504,1754430657845,-601.13,0.00028219,2]
[377500505,1754430657854,-582.79929482,0.00028219,2]
[377500506,1754430657864,-858.9,0.00028219,2]
[377500507,1754430657874,-460.0,0.00028219,2]
[377500508,1754430657883,-530.73,0.00028219,2]
[377500509,1754430657893,-460.0,0.00028219,2]
[377500510,1754430657903,-460.0,0.00028219,2]
[377500511,1754430657913,-460.0,0.00028219,2]
[377500512,1754430657925,-753.11,0.00028219,2]
[377500513,1754430657935,-460.0,0.00028219,2]
[377500514,1754430657946,-708.2,0.00028219,2]
[377500515,1754430657956,-542.88,0.00028219,2]
[377500516,1754430657968,-460.0,0.00028219,2]
[377500517,1754430657979,-577.76,0.00028219,2]
[377500518,1754430657991,-460.0,0.00028219,2]
[377500519,1754430658000,-1665.23,0.00028219,2]
[377500520,1754430658010,-262.69366919,0.00028219,2]
[377500521,1754430658019,-460.0,0.00028219,2]
[377500522,1754430658029,-1257.42,0.00028219,2]
[377500523,1754430658039,-460.0,0.00028219,2]
[377500524,1754430658050,-460.0,0.00028219,2]
[377500525,1754430658062,-460.0,0.00028219,2]
[377500526,1754430658074,-460.0,0.00028219,2]
[377500527,1754430658084,-460.0,0.00028219,2]
[377500528,1754430658094,-1323.72,0.00028219,2]
[377500529,1754430658105,-1507.31,0.00028219,2]
[377500530,1754430658115,-843.26,0.00028219,2]
[377500531,1754430658124,-871.76,0.00028219,2]
[377500532,1754430658133,-460.0,0.00028219,2]
[377500533,1754430658142,-460.0,0.00028219,2]
[377500534,1754430658152,-460.0,0.00028219,2]
[377500535,1754430658161,-460.0,0.00028219,2]
[377500536,1754430658171,-460.0,0.00028219,2]
[377500537,1754430658180,-1612.73,0.00028219,2]
[377500538,1754430658189,-460.0,0.00028219,2]
[377500539,1754430658199,-460.0,0.00028219,2]
[377500540,1754430658209,-460.0,0.00028219,2]
[377500541,1754430658219,-1161.99,0.00028219,2]
[377500542,1754430658229,-896.21,0.00028219,2]
[377500543,1754430658240,-718.5,0.00028219,2]
[377500544,1754430658250,-460.0,0.00028219,2]
[377500545,1754430658260,-460.0,0.00028219,2]
[377500546,1754430658272,-467.54775354,0.00028219,2]
[377500547,1754430658281,-460.0,0.00028219,2]
[377500548,1754430658292,-460.0,0.00028219,2]
[377500549,1754430658302,-2671.58,0.00028219,2]
[377500550,1754430658313,-460.0,0.00028219,2]
[377500551,1754430658323,-805.38797853,0.00028221,5]
[377500552,1754430658332,-1000.0,0.00028221,2]
[377500553,1754430658343,-500.0,0.00028221,5]
[377500554,1754430658354,-1000.0,0.00028221,5]
[377500555,1754430658365,-1000.0,0.00028221,5]
[377500556,1754430658375,-521.3620583,0.00028221,5]
[377500557,1754430658384,-641.78472924,0.00028238,2]
[377500558,1754430658394,-161.49,0.00028299,30]
[377500559,1754430658403,-1500.0,0.00028468,2]
[377500560,1754430658413,-1500.0,0.00028468,5]
[377500561,1754430658422,-500.0,0.00028468,5]
[377500562,1754430658432,-1000.0,0.00028468,5]
[377500563,1754430658441,-160.0,0.00028474,2]
[377500564,1754430658450,-215.21874788,0.00028477,2]
[377500565,1754430658460,-842.25606042,0.00028477,2]
[377500566,1754430658469,-160.0,0.00028477,2]
[377500567,1754430658478,-160.0,0.00028477,2]
[377500568,1754430658488,-312.16666667,0.00028477,2]
[377500569,1754430658497,-160.0,0.00028477,2]
[377500570,1754430658507,-527.3554621,0.00028477,2]
[377500571,1754430658516,-160.0,0.00028477,2]
[377500572,1754430658526,-160.0,0.00028477,2]
[377500573,1754430658535,-216.4206905,0.00028477,2]
[377500574,1754430658545,-160.0,0.00028477,2]
[377500575,1754430658555,-160.0,0.00028483,2]
[377500576,1754430658565,-12655.02535889,0.00028483,2]
[377500577,1754430658575,-231.72586818,0.00028483,2]
[377500578,1754430658584,-327.68378311,0.00028493,2]
[377500579,1754430658593,-460.0,0.00028493,2]
[377500580,1754430658603,-460.0,0.00028493,2]
[377500581,1754430658612,-460.0,0.00028493,2]
[377500582,1754430658621,-460.0,0.00028493,2]
[377500583,1754430658630,-460.0,0.00028493,2]
[377500584,1754430658639,-460.0,0.00028493,2]
[377500585,1754430658649,-1842.06,0.00028493,2]
[377500586,1754430658658,-460.0,0.00028493,2]
[377500587,1754430658668,-460.0,0.00028493,2]
[377500588,1754430658677,-460.0,0.00028493,2]
[377500589,1754430658688,-58465.94,0.00028493,2]
[377500590,1754430658697,-460.0,0.00028493,2]
[377500591,1754430658707,-460.0,0.00028493,2]
[377500592,1754430658716,-631.25,0.00028493,2]
[377500593,1754430658726,-460.0,0.00028493,2]
[377500594,1754430658736,-460.0,0.00028493,2]
[377500595,1754430658745,-460.0,0.00028493,2]
[377500596,1754430658754,-460.0,0.00028493,2]
[377500597,1754430658764,-218.13481286,0.00028493,2]
[377500598,1754430658774,-460.0,0.00028493,2]
[377500599,1754430658785,-419.08537142,0.00028493,2]
[377500600,1754430658794,-460.0,0.00028493,2]
[377500601,1754430658804,-460.0,0.00028493,2]
[377500602,1754430658815,-460.0,0.00028493,2]
[377500603,1754430658824,-460.0,0.00028493,2]
[377500604,1754430658834,-460.0,0.00028493,2]
[377500605,1754430658843,-935.97,0.00028493,2]
[377500606,1754430658853,-587.3,0.00028493,2]
[377500607,1754430658864,-460.0,0.00028493,2]
[377500608,1754430658874,-460.0,0.00028493,2]
[377500609,1754430658883,-460.0,0.00028493,2]
[377500610,1754430658892,-460.0,0.00028493,2]
[377500611,1754430658902,-1112.51,0.00028493,2]
[377500612,1754430658912,-1373.77,0.00028493,2]
[377500613,1754430658921,-473.60711005,0.00028493,2]
[377500614,1754430658931,-460.0,0.00028493,2]
[377500615,1754430658941,-871.36,0.00028493,2]
[377500616,1754430658951,-460.0,0.00028493,2]
[377500617,1754430658961,-460.0,0.00028493,2]
[377500618,1754430658971,-1779.37,0.00028493,2]
[377500619,1754430658981,-1545.29,0.00028493,2]
[377500620,1754430658992,-460.0,0.00028493,2]
[377500621,1754430659001,-460.0,0.00028493,2]
[377500622,1754430659012,-460.0,0.00028493,2]
[377500623,1754430659022,-460.0,0.00028493,2]
[377500624,1754430659036,-460.0,0.00028493,2]
[377500625,1754430659046,-460.0,0.00028493,2]
[377500626,1754430659055,-460.0,0.00028493,2]
[377500627,1754430659065,-460.0,0.00028493,2]
[377500628,1754430659079,-460.0,0.00028493,2]
[377500629,1754430659088,-460.0,0.00028493,2]
[377500630,1754430659100,-460.0,0.00028493,2]
[377500631,1754430659111,-1537.8,0.00028493,2]
[377500632,1754430659120,-582.89,0.00028493,2]
[377500633,1754430659130,-462.84543065,0.00028493,2]
[377500634,1754430659140,-478.5,0.00028493,2]
[377500635,1754430659150,-460.0,0.00028493,2]
[377500636,1754430659163,-497.24,0.00028493,2]
[377500637,1754430659173,-460.0,0.00028493,2]
[377500638,1754430659182,-460.0,0.00028493,2]
[377500639,1754430659192,-460.0,0.00028493,2]
[377500640,1754430659201,-460.0,0.00028493,2]
[377500641,1754430659211,-467.01760705,0.00028493,2]
[377500642,1754430659221,-460.0,0.00028493,2]
[377500643,1754430659230,-460.0,0.00028493,2]
[377500644,1754430659240,-460.0,0.00028493,2]
[377500645,1754430659249,-354.22544669,0.00028493,2]
[377500646,1754430659259,-460.0,0.00028493,2]
[377500647,1754430659269,-5939.81,0.00028493,2]
[377500648,1754430659280,-460.0,0.00028493,2]
[377500649,1754430659290,-1094.68,0.00028493,2]
[377500650,1754430659300,-460.0,0.00028493,2]
[377500651,1754430659310,-460.0,0.00028493,2]
[377500652,1754430659320,-460.0,0.00028493,2]
[377500653,1754430659330,-460.0,0.00028493,2]
[377500654,1754430659340,-460.0,0.00028493,2]
[377500655,1754430659350,-460.0,0.00028493,2]
[377500656,1754430659360,-460.0,0.00028493,2]
[377500657,1754430659370,-460.0,0.00028493,2]
[377500658,1754430659380,-493.69,0.00028493,2]
[377500659,1754430659390,-460.0,0.00028493,2]
[377500660,1754430659399,-460.0,0.00028493,2]
[377500661,1754430659409,-460.0,0.00028493,2]
[377500662,1754430659418,-460.0,0.00028493,2]
[377500663,1754430659428,-460.0,0.00028493,2]
[377500664,1754430659437,-1093.0,0.00028493,2]
[377500665,1754430659447,-460.0,0.00028493,2]
[377500666,1754430659456,-1269.04,0.00028493,2]
[377500667,1754430659466,-303.11429713,0.00028493,2]
[377500668,1754430659475,-460.0,0.00028493,2]
[377500669,1754430659485,-460.0,0.00028493,2]
[377500670,1754430659494,-633.84,0.00028493,2]
[377500671,1754430659503,-460.0,0.00028493,2]
[377500672,1754430659512,-460.0,0.00028493,2]
[377500673,1754430659522,-465.17304523,0.00028493,2]
[377500674,1754430659531,-460.0,0.00028493,2]
[377500675,1754430659541,-496.46,0.00028493,2]
[377500676,1754430659551,-1558.16,0.00028493,2]
[377500677,1754430659560,-1070.81,0.00028493,2]
[377500678,1754430659570,-460.0,0.00028493,2]
[377500679,1754430659581,-460.0,0.00028493,2]
[377500680,1754430659591,-460.0,0.00028493,2]
[377500681,1754430659600,-460.0,0.00028493,2]
[377500682,1754430659610,-460.0,0.00028493,2]
[377500683,1754430659620,-836.37,0.00028493,2]
[377500684,1754430659629,-460.0,0.00028493,2]
[377500685,1754430659638,-460.0,0.00028493,2]
[377500686,1754430659648,-460.0,0.00028493,2]
[377500687,1754430659657,-1359.86,0.00028493,2]
[377500688,1754430659667,-5050.93,0.00028493,2]
[377500689,1754430659677,-569.2,0.00028493,2]
[377500690,1754430659689,-2094.78,0.00028493,2]
[377500691,1754430659699,-465.19542519,0.00028493,2]
[377500692,1754430659709,-460.0,0.00028493,2]
[377500693,1754430659719,-1722.74,0.00028493,2]
[377500694,1754430659728,-460.0,0.00028493,2]
[377500695,1754430659737,-460.0,0.00028493,2]
[377500696,1754430659747,-460.0,0.00028493,2]
[377500697,1754430659756,-1026.08,0.00028493,2]
[377500698,1754430659766,-538.16046026,0.00028493,2]
[377500699,1754430659776,-460.0,0.00028493,2]
[377500700,1754430659824,-460.0,0.00028493,2]
[377500701,1754430659834,-460.0,0.00028493,2]
[377500702,1754430659843,-579.16,0.00028493,2]
[377500703,1754430659853,-460.0,0.00028493,2]
[377500704,1754430659862,-889.95,0.00028493,2]
[377500705,1754430659871,-1222.34,0.00028493,2]
[377500706,1754430659881,-940.82,0.00028493,2]
[377500707,1754430659891,-500.0,0.00028493,2]
[377500708,1754430659900,-460.0,0.00028493,2]
[377500709,1754430659910,-188.53450768,0.00028493,2]
[377500710,1754430659931,-460.0,0.00028493,2]
[377500711,1754430659941,-4422.38,0.00028493,2]
[377500712,1754430659951,-489.74,0.00028493,2]
[377500713,1754430659962,-500.0,0.00028493,2]
[377500714,1754430659972,-460.0,0.00028493,2]